[Event "Titled Tuesday Blitz April 05 Early 2022"]
[White "Rastbod, Ali"]
[Black "Horcajuelo Rocamora, Martin"]
[WhiteFideId "12567477"]
[BlackFideId "24573027"]
[WhiteElo "2147"]
[BlackElo "1822"]
[Result "1-0"]
[Round "01"]
[TimeControl "180+1"]
[Date "2022.04.05"]
[WhiteClock "0:00:28"]
[BlackClock "0:00:23"]

1. d4 {[%clk 0:02:34]}  Nf6 {[%clk 0:02:59]} 2. c4 {[%clk 0:02:30]}  c5 {[%clk 0:02:59]} 3. d5 {[%clk 0:02:28]}  b5 {[%clk 0:02:58]} 4. cxb5 {[%clk 0:02:28]}  a6 {[%clk 0:02:58]} 5. bxa6 {[%clk 0:02:29]}  e6 {[%clk 0:02:55]} 6. Nc3 {[%clk 0:02:24]}  exd5 {[%clk 0:02:53]} 7. Nxd5 {[%clk 0:02:23]}  Be7 {[%clk 0:02:54]} 8. Bf4 {[%clk 0:02:16]}  Nxd5 {[%clk 0:02:50]} 9. Qxd5 {[%clk 0:02:15]}  Nc6 {[%clk 0:02:50]} 10. Nf3 {[%clk 0:02:11]}  Bxa6 {[%clk 0:02:49]} 11. e4 {[%clk 0:02:07]}  Nb4 {[%clk 0:02:39]} 12. Qd2 {[%clk 0:01:59]}  O-O {[%clk 0:02:38]} 13. Bxa6 {[%clk 0:01:55]}  Rxa6 {[%clk 0:02:39]} 14. a3 {[%clk 0:01:53]}  c4 {[%clk 0:02:31]} 15. Ne5 {[%clk 0:01:40]}  d6 {[%clk 0:01:50]} 16. Nxc4 {[%clk 0:01:32]}  d5 {[%clk 0:01:46]} 17. exd5 {[%clk 0:01:27]}  Qc8 {[%clk 0:01:40]} 18. Rc1 {[%clk 0:01:20]}  Qf5 {[%clk 0:01:33]} 19. axb4 {[%clk 0:01:08]}  Qe4+ {[%clk 0:01:31]} 20. Be3 {[%clk 0:01:02]}  Rc8 {[%clk 0:01:25]} 21. f3 {[%clk 0:00:36]}  Qg6 {[%clk 0:00:37]} 22. O-O {[%clk 0:00:34]}  h5 {[%clk 0:00:34]} 23. b3 {[%clk 0:00:33]}  h4 {[%clk 0:00:33]} 24. b5 {[%clk 0:00:34]}  Rf6 {[%clk 0:00:31]} 25. b6 {[%clk 0:00:32]}  h3 {[%clk 0:00:29]} 26. g3 {[%clk 0:00:33]}  Kh7 {[%clk 0:00:25]} 27. Bf4 {[%clk 0:00:30]}  Rxb6 {[%clk 0:00:23]} 28. Nxb6 {[%clk 0:00:29]}  Qxb6+ {[%clk 0:00:23]} 29. Kh1 {[%clk 0:00:29]}  Rxc1 {[%clk 0:00:23]} 30. Rxc1 {[%clk 0:00:28]}  Qxb3 {[%clk 0:00:23]} 31. Qc2+ {[%clk 0:00:28]} 1-0


[Site "https://www.chess.com"]

[Event "Titled Tuesday Blitz April 05 Early 2022"]
[White "Rodrigues, Bruno Morado"]
[Black "Leiva, Gianmarco"]
[WhiteFideId "2115654"]
[BlackFideId "3804399"]
[WhiteElo "2040"]
[BlackElo "2323"]
[Result "0-1"]
[Round "01"]
[TimeControl "180+1"]
[Date "2022.04.05"]
[WhiteClock "0:00:32"]
[BlackClock "0:00:10"]

1. d4 {[%clk 0:02:59]}  Nf6 {[%clk 0:02:56]} 2. Nc3 {[%clk 0:03:00]}  d5 {[%clk 0:02:56]} 3. Bg5 {[%clk 0:02:59]}  c5 {[%clk 0:02:43]} 4. e3 {[%clk 0:02:59]}  Nc6 {[%clk 0:02:43]} 5. dxc5 {[%clk 0:02:59]}  e6 {[%clk 0:02:41]} 6. e4 {[%clk 0:02:58]}  Bxc5 {[%clk 0:02:33]} 7. exd5 {[%clk 0:02:58]}  exd5 {[%clk 0:02:33]} 8. Nf3 {[%clk 0:02:59]}  O-O {[%clk 0:02:31]} 9. Be2 {[%clk 0:02:58]}  d4 {[%clk 0:02:29]} 10. Ne4 {[%clk 0:02:56]}  Bb4+ {[%clk 0:02:26]} 11. Ned2 {[%clk 0:02:23]}  h6 {[%clk 0:02:26]} 12. Bh4 {[%clk 0:02:22]}  Bf5 {[%clk 0:02:21]} 13. O-O {[%clk 0:02:21]}  Re8 {[%clk 0:02:13]} 14. Nb3 {[%clk 0:02:20]}  Bh7 {[%clk 0:01:17]} 15. Nbxd4 {[%clk 0:02:18]}  Nxd4 {[%clk 0:01:17]} 16. Nxd4 {[%clk 0:02:13]}  Re4 {[%clk 0:00:51]} 17. Bxf6 {[%clk 0:02:05]}  Qxf6 {[%clk 0:00:52]} 18. c3 {[%clk 0:02:05]}  Bc5 {[%clk 0:00:33]} 19. Bd3 {[%clk 0:02:03]}  Ree8 {[%clk 0:00:29]} 20. Bxh7+ {[%clk 0:02:02]}  Kxh7 {[%clk 0:00:30]} 21. Qd3+ {[%clk 0:02:00]}  Kg8 {[%clk 0:00:30]} 22. Rfe1 {[%clk 0:01:45]}  Red8 {[%clk 0:00:30]} 23. Rad1 {[%clk 0:01:44]}  Bxd4 {[%clk 0:00:29]} 24. cxd4 {[%clk 0:01:44]}  Rd5 {[%clk 0:00:29]} 25. Re4 {[%clk 0:01:36]}  Rad8 {[%clk 0:00:29]} 26. Rde1 {[%clk 0:01:36]}  g6 {[%clk 0:00:22]} 27. Re8+ {[%clk 0:01:34]}  Rxe8 {[%clk 0:00:16]} 28. Rxe8+ {[%clk 0:01:35]}  Kg7 {[%clk 0:00:17]} 29. Qa3 {[%clk 0:01:06]}  Qd6 {[%clk 0:00:06]} 30. Qxd6 {[%clk 0:00:58]}  Rxd6 {[%clk 0:00:07]} 31. Re4 {[%clk 0:00:58]}  Rc6 {[%clk 0:00:08]} 32. g3 {[%clk 0:00:48]}  Rc2 {[%clk 0:00:08]} 33. d5 {[%clk 0:00:42]}  Rxb2 {[%clk 0:00:08]} 34. Re7 {[%clk 0:00:36]}  Kf6 {[%clk 0:00:05]} 35. Rc7 {[%clk 0:00:34]}  a5 {[%clk 0:00:05]} 36. d6 {[%clk 0:00:32]}  Ke6 {[%clk 0:00:06]} 37. Re7+ {[%clk 0:00:29]}  Kxd6 {[%clk 0:00:06]} 38. Rxf7 {[%clk 0:00:30]}  b5 {[%clk 0:00:07]} 39. Rf6+ {[%clk 0:00:28]}  Kc5 {[%clk 0:00:07]} 40. Rxg6 {[%clk 0:00:29]}  Rxa2 {[%clk 0:00:07]} 41. Rxh6 {[%clk 0:00:30]}  b4 {[%clk 0:00:06]} 42. Rh8 {[%clk 0:00:30]}  b3 {[%clk 0:00:06]} 43. Rb8 {[%clk 0:00:30]}  b2 {[%clk 0:00:06]} 44. Kg2 {[%clk 0:00:30]}  a4 {[%clk 0:00:06]} 45. h4 {[%clk 0:00:31]}  a3 {[%clk 0:00:07]} 46. h5 {[%clk 0:00:32]}  Ra1 {[%clk 0:00:07]} 47. h6 {[%clk 0:00:32]}  b1=Q {[%clk 0:00:08]} 48. Rxb1 {[%clk 0:00:31]}  Rxb1 {[%clk 0:00:09]} 49. h7 {[%clk 0:00:32]}  Rb8 {[%clk 0:00:10]} 50. g4 {[%clk 0:00:32]}  a2 {[%clk 0:00:10]} 0-1


[Site "https://www.chess.com"]

[Event "Titled Tuesday Blitz April 05 Early 2022"]
[White "Rosenberg, Evan S"]
[Black "Yang, Kaiqi"]
[WhiteFideId "2019299"]
[BlackFideId "8604398"]
[WhiteElo "2270"]
[BlackElo "2373"]
[Result "0-1"]
[Round "01"]
[TimeControl "180+1"]
[Date "2022.04.05"]
[WhiteClock "0:01:29"]
[BlackClock "0:01:17"]

1. d4 {[%clk 0:03:00]}  e6 {[%clk 0:02:59]} 2. c4 {[%clk 0:03:00]}  f5 {[%clk 0:02:57]} 3. g3 {[%clk 0:02:59]}  Nf6 {[%clk 0:02:58]} 4. Bg2 {[%clk 0:03:00]}  d5 {[%clk 0:02:58]} 5. Nd2 {[%clk 0:02:58]}  Bd6 {[%clk 0:02:55]} 6. Ngf3 {[%clk 0:02:57]}  c6 {[%clk 0:02:55]} 7. O-O {[%clk 0:02:57]}  Nbd7 {[%clk 0:02:54]} 8. b3 {[%clk 0:02:57]}  O-O {[%clk 0:02:54]} 9. Bb2 {[%clk 0:02:57]}  Ne4 {[%clk 0:02:50]} 10. Ne1 {[%clk 0:02:56]}  a5 {[%clk 0:02:40]} 11. f3 {[%clk 0:02:53]}  Nxd2 {[%clk 0:02:40]} 12. Qxd2 {[%clk 0:02:53]}  Nf6 {[%clk 0:02:33]} 13. Nd3 {[%clk 0:02:51]}  a4 {[%clk 0:02:31]} 14. Rae1 {[%clk 0:02:45]}  axb3 {[%clk 0:02:06]} 15. axb3 {[%clk 0:02:44]}  Ra2 {[%clk 0:01:53]} 16. Qc3 {[%clk 0:02:44]}  Bd7 {[%clk 0:01:38]} 17. e4 {[%clk 0:02:40]}  fxe4 {[%clk 0:01:37]} 18. fxe4 {[%clk 0:02:40]}  dxe4 {[%clk 0:01:37]} 19. Nf4 {[%clk 0:02:24]}  Qe7 {[%clk 0:01:33]} 20. c5 {[%clk 0:02:07]}  Bxf4 {[%clk 0:01:22]} 21. Rxf4 {[%clk 0:02:07]}  Nd5 {[%clk 0:01:20]} 22. Rxf8+ {[%clk 0:02:07]}  Qxf8 {[%clk 0:01:21]} 23. Qd2 {[%clk 0:01:44]}  e3 {[%clk 0:01:19]} 24. Qe2 {[%clk 0:01:29]}  Qf2+ {[%clk 0:01:18]} 25. Kh1 {[%clk 0:01:29]}  Rxb2 {[%clk 0:01:17]} 0-1


[Site "https://www.chess.com"]

[Event "Titled Tuesday Blitz April 05 Early 2022"]
[White "Sadhwani, Raunak"]
[Black "Petrovic, Aleksa"]
[WhiteFideId "35093487"]
[BlackFideId "967629"]
[WhiteElo "2616"]
[BlackElo "2198"]
[Result "1-0"]
[Round "01"]
[TimeControl "180+1"]
[Date "2022.04.05"]
[WhiteClock "0:01:32"]
[BlackClock "0:00:07"]

1. d4 {[%clk 0:02:59]}  Nf6 {[%clk 0:02:59]} 2. Nf3 {[%clk 0:03:00]}  e6 {[%clk 0:02:59]} 3. Bf4 {[%clk 0:03:00]}  b6 {[%clk 0:02:58]} 4. Nbd2 {[%clk 0:03:00]}  Bb7 {[%clk 0:02:58]} 5. e3 {[%clk 0:03:00]}  Be7 {[%clk 0:02:57]} 6. h3 {[%clk 0:03:01]}  O-O {[%clk 0:02:57]} 7. Be2 {[%clk 0:03:01]}  c5 {[%clk 0:02:56]} 8. O-O {[%clk 0:03:01]}  d6 {[%clk 0:02:55]} 9. c3 {[%clk 0:03:01]}  Nbd7 {[%clk 0:02:46]} 10. Bh2 {[%clk 0:03:00]}  Re8 {[%clk 0:02:25]} 11. Nc4 {[%clk 0:02:56]}  Nf8 {[%clk 0:02:26]} 12. a4 {[%clk 0:02:46]}  Ng6 {[%clk 0:02:25]} 13. b4 {[%clk 0:02:30]}  Nd5 {[%clk 0:02:20]} 14. Qb3 {[%clk 0:02:30]}  cxb4 {[%clk 0:02:05]} 15. cxb4 {[%clk 0:02:31]}  Rc8 {[%clk 0:02:00]} 16. Rfc1 {[%clk 0:02:31]}  Qd7 {[%clk 0:01:52]} 17. b5 {[%clk 0:02:28]}  a5 {[%clk 0:01:37]} 18. bxa6 {[%clk 0:02:26]}  Bxa6 {[%clk 0:01:37]} 19. Nxb6 {[%clk 0:02:27]}  Rxc1+ {[%clk 0:01:30]} 20. Rxc1 {[%clk 0:02:28]}  Nxb6 {[%clk 0:00:52]} 21. Bxa6 {[%clk 0:02:27]}  Rb8 {[%clk 0:00:51]} 22. Bb5 {[%clk 0:02:05]}  Qa7 {[%clk 0:00:45]} 23. Bg3 {[%clk 0:02:05]}  h5 {[%clk 0:00:38]} 24. h4 {[%clk 0:02:03]}  Ra8 {[%clk 0:00:30]} 25. Rc6 {[%clk 0:01:56]}  Nxa4 {[%clk 0:00:27]} 26. Ra6 {[%clk 0:01:55]}  Qxa6 {[%clk 0:00:27]} 27. Bxa6 {[%clk 0:01:56]}  Rxa6 {[%clk 0:00:28]} 28. Qb5 {[%clk 0:01:35]}  Ra8 {[%clk 0:00:21]} 29. Qc6 {[%clk 0:01:34]}  Ra5 {[%clk 0:00:16]} 30. Bxd6 {[%clk 0:01:35]}  Bxd6 {[%clk 0:00:15]} 31. Qxd6 {[%clk 0:01:35]}  Nf8 {[%clk 0:00:12]} 32. Ng5 {[%clk 0:01:32]}  Nc3 {[%clk 0:00:10]} 33. Qc7 {[%clk 0:01:32]}  Ra1+ {[%clk 0:00:07]} 34. Kh2 {[%clk 0:01:32]} 1-0


[Site "https://www.chess.com"]

[Event "Titled Tuesday Blitz April 05 Early 2022"]
[White "Salinas Herrera, Pablo"]
[Black "Szalay, Karoly"]
[WhiteFideId "3407128"]
[BlackFideId "2600544"]
[WhiteElo "2541"]
[BlackElo "2464"]
[Result "1-0"]
[Round "01"]
[TimeControl "180+1"]
[Date "2022.04.05"]
[WhiteClock "0:00:27"]
[BlackClock "0:00:31"]

1. d4 {[%clk 0:03:00]}  d5 {[%clk 0:03:00]} 2. Bf4 {[%clk 0:03:01]}  e6 {[%clk 0:03:00]} 3. e3 {[%clk 0:03:01]}  Nf6 {[%clk 0:02:59]} 4. Nf3 {[%clk 0:03:02]}  c5 {[%clk 0:02:59]} 5. Nbd2 {[%clk 0:03:02]}  Nc6 {[%clk 0:03:00]} 6. c3 {[%clk 0:03:03]}  Be7 {[%clk 0:03:00]} 7. Bd3 {[%clk 0:03:02]}  O-O {[%clk 0:03:01]} 8. Ne5 {[%clk 0:03:02]}  Nxe5 {[%clk 0:02:58]} 9. dxe5 {[%clk 0:03:01]}  Nd7 {[%clk 0:02:58]} 10. Qh5 {[%clk 0:03:01]}  g6 {[%clk 0:02:58]} 11. Qh6 {[%clk 0:03:02]}  f5 {[%clk 0:02:58]} 12. Nf3 {[%clk 0:02:58]}  Rf7 {[%clk 0:02:39]} 13. Ng5 {[%clk 0:02:58]}  Bxg5 {[%clk 0:02:39]} 14. Bxg5 {[%clk 0:02:58]}  Qf8 {[%clk 0:02:40]} 15. f4 {[%clk 0:02:45]}  c4 {[%clk 0:02:29]} 16. Qxf8+ {[%clk 0:02:40]}  Rxf8 {[%clk 0:02:27]} 17. Bc2 {[%clk 0:02:40]}  Kg7 {[%clk 0:02:27]} 18. Be7 {[%clk 0:02:12]}  Re8 {[%clk 0:02:23]} 19. Bd6 {[%clk 0:02:12]}  Nb6 {[%clk 0:02:24]} 20. h3 {[%clk 0:02:08]}  Bd7 {[%clk 0:02:23]} 21. g4 {[%clk 0:02:06]}  Ba4 {[%clk 0:02:24]} 22. b3 {[%clk 0:02:06]}  Bb5 {[%clk 0:02:20]} 23. Kd2 {[%clk 0:02:05]}  Rec8 {[%clk 0:02:15]} 24. Rag1 {[%clk 0:02:04]}  a5 {[%clk 0:02:16]} 25. gxf5 {[%clk 0:02:02]}  exf5 {[%clk 0:02:15]} 26. Bxf5 {[%clk 0:02:03]}  cxb3 {[%clk 0:02:13]} 27. Bxc8 {[%clk 0:02:01]}  Nc4+ {[%clk 0:02:13]} 28. Kc1 {[%clk 0:01:53]}  bxa2 {[%clk 0:02:11]} 29. Kc2 {[%clk 0:01:50]}  Rxc8 {[%clk 0:02:01]} 30. Ra1 {[%clk 0:01:50]}  Ba4+ {[%clk 0:01:54]} 31. Kd3 {[%clk 0:01:48]}  Bb3 {[%clk 0:01:55]} 32. Kd4 {[%clk 0:01:46]}  Kf7 {[%clk 0:01:53]} 33. e4 {[%clk 0:01:34]}  dxe4 {[%clk 0:01:46]} 34. Kxe4 {[%clk 0:01:35]}  Nxd6+ {[%clk 0:01:39]} 35. exd6 {[%clk 0:01:35]}  Rxc3 {[%clk 0:01:40]} 36. Rhc1 {[%clk 0:00:51]}  Rxc1 {[%clk 0:01:27]} 37. Rxc1 {[%clk 0:00:51]}  Bc2+ {[%clk 0:01:28]} 38. Ke5 {[%clk 0:00:42]}  Bb1 {[%clk 0:01:26]} 39. Rc7+ {[%clk 0:00:42]}  Kf8 {[%clk 0:01:15]} 40. Rc8+ {[%clk 0:00:40]}  Kg7 {[%clk 0:00:48]} 41. d7 {[%clk 0:00:39]}  a1=Q+ {[%clk 0:00:47]} 42. Kd6 {[%clk 0:00:40]}  Qa3+ {[%clk 0:00:33]} 43. Kc7 {[%clk 0:00:37]}  Qc5+ {[%clk 0:00:33]} 44. Kb8 {[%clk 0:00:28]}  Qd6+ {[%clk 0:00:32]} 45. Rc7 {[%clk 0:00:28]}  Bf5 {[%clk 0:00:31]} 46. d8=Q+ {[%clk 0:00:27]} 1-0


[Site "https://www.chess.com"]

[Event "Titled Tuesday Blitz April 05 Early 2022"]
[White "Sanchez, Robert"]
[Black "Potapova, Margarita"]
[WhiteFideId "2034360"]
[BlackFideId "14126869"]
[WhiteElo "2289"]
[BlackElo "2216"]
[Result "0-1"]
[Round "01"]
[TimeControl "180+1"]
[Date "2022.04.05"]
[WhiteClock "0:00:42"]
[BlackClock "0:00:27"]

1. e4 {[%clk 0:03:00]}  c5 {[%clk 0:02:59]} 2. Nf3 {[%clk 0:03:01]}  d6 {[%clk 0:03:00]} 3. d4 {[%clk 0:03:01]}  cxd4 {[%clk 0:03:01]} 4. Nxd4 {[%clk 0:03:02]}  Nf6 {[%clk 0:03:01]} 5. Nc3 {[%clk 0:03:03]}  a6 {[%clk 0:03:02]} 6. Be3 {[%clk 0:03:03]}  e5 {[%clk 0:02:58]} 7. Nb3 {[%clk 0:03:03]}  Be6 {[%clk 0:02:55]} 8. f3 {[%clk 0:03:03]}  Be7 {[%clk 0:02:54]} 9. Qd2 {[%clk 0:03:03]}  O-O {[%clk 0:02:54]} 10. O-O-O {[%clk 0:03:03]}  Nbd7 {[%clk 0:02:53]} 11. g4 {[%clk 0:03:04]}  b5 {[%clk 0:02:54]} 12. g5 {[%clk 0:03:04]}  b4 {[%clk 0:02:50]} 13. Ne2 {[%clk 0:03:03]}  Ne8 {[%clk 0:02:50]} 14. Ng3 {[%clk 0:03:02]}  a5 {[%clk 0:02:49]} 15. Kb1 {[%clk 0:03:01]}  a4 {[%clk 0:02:49]} 16. Nc1 {[%clk 0:03:01]}  Nb6 {[%clk 0:02:03]} 17. Bxb6 {[%clk 0:02:43]}  Qxb6 {[%clk 0:02:02]} 18. Nf5 {[%clk 0:02:44]}  Bxf5 {[%clk 0:01:48]} 19. exf5 {[%clk 0:02:45]}  d5 {[%clk 0:01:49]} 20. g6 {[%clk 0:02:39]}  Nf6 {[%clk 0:01:41]} 21. h4 {[%clk 0:02:32]}  fxg6 {[%clk 0:01:40]} 22. fxg6 {[%clk 0:02:32]}  h6 {[%clk 0:01:41]} 23. Bh3 {[%clk 0:02:27]}  Kh8 {[%clk 0:01:39]} 24. Rhe1 {[%clk 0:02:22]}  Bd6 {[%clk 0:01:37]} 25. Be6 {[%clk 0:02:16]}  d4 {[%clk 0:01:27]} 26. Bf7 {[%clk 0:01:53]}  a3 {[%clk 0:01:16]} 27. b3 {[%clk 0:01:53]}  Rac8 {[%clk 0:01:09]} 28. Nd3 {[%clk 0:01:52]}  Qc7 {[%clk 0:01:03]} 29. Re2 {[%clk 0:01:46]}  Rxf7 {[%clk 0:01:02]} 30. gxf7 {[%clk 0:01:46]}  Nd5 {[%clk 0:01:02]} 31. Rde1 {[%clk 0:01:28]}  Nc3+ {[%clk 0:00:53]} 32. Ka1 {[%clk 0:01:28]}  Nxe2 {[%clk 0:00:52]} 33. Rxe2 {[%clk 0:01:29]}  Qxf7 {[%clk 0:00:50]} 34. Nxe5 {[%clk 0:01:05]}  Bxe5 {[%clk 0:00:48]} 35. Rxe5 {[%clk 0:01:06]}  Qxf3 {[%clk 0:00:47]} 36. Re1 {[%clk 0:00:55]}  Qf6 {[%clk 0:00:46]} 37. Kb1 {[%clk 0:00:53]}  Qxh4 {[%clk 0:00:46]} 38. Qxb4 {[%clk 0:00:53]}  Qf2 {[%clk 0:00:44]} 39. Rc1 {[%clk 0:00:51]}  d3 {[%clk 0:00:43]} 40. Qxa3 {[%clk 0:00:50]}  d2 {[%clk 0:00:27]} 41. Rd1 {[%clk 0:00:42]}  Qe2 {[%clk 0:00:27]} 0-1


[Site "https://www.chess.com"]

[Event "Titled Tuesday Blitz April 05 Early 2022"]
[White "Sarkar, Justin"]
[Black "Dang, Hoang Son"]
[WhiteFideId "2010011"]
[BlackFideId "12402435"]
[WhiteElo "2038"]
[BlackElo "2252"]
[Result "0-1"]
[Round "01"]
[TimeControl "180+1"]
[Date "2022.04.05"]
[WhiteClock "0:00:06"]
[BlackClock "0:01:05"]

1. d4 {[%clk 0:02:48]}  Nf6 {[%clk 0:02:58]} 2. c4 {[%clk 0:02:46]}  g6 {[%clk 0:02:58]} 3. Nc3 {[%clk 0:02:42]}  Bg7 {[%clk 0:02:59]} 4. e4 {[%clk 0:02:41]}  O-O {[%clk 0:03:00]} 5. Nf3 {[%clk 0:02:37]}  d6 {[%clk 0:03:00]} 6. Be2 {[%clk 0:02:35]}  e5 {[%clk 0:02:59]} 7. O-O {[%clk 0:02:35]}  Nc6 {[%clk 0:02:59]} 8. dxe5 {[%clk 0:02:33]}  dxe5 {[%clk 0:02:57]} 9. Qxd8 {[%clk 0:02:32]}  Rxd8 {[%clk 0:02:57]} 10. Bg5 {[%clk 0:02:27]}  Be6 {[%clk 0:02:31]} 11. Nd5 {[%clk 0:02:17]}  Bxd5 {[%clk 0:02:31]} 12. cxd5 {[%clk 0:02:14]}  Nd4 {[%clk 0:02:25]} 13. Nxd4 {[%clk 0:02:08]}  exd4 {[%clk 0:02:26]} 14. e5 {[%clk 0:02:05]}  Nxd5 {[%clk 0:02:24]} 15. Bxd8 {[%clk 0:02:02]}  Rxd8 {[%clk 0:02:25]} 16. f4 {[%clk 0:01:32]}  Ne3 {[%clk 0:02:18]} 17. Rf3 {[%clk 0:01:30]}  f6 {[%clk 0:01:36]} 18. exf6 {[%clk 0:01:20]}  Bxf6 {[%clk 0:01:36]} 19. Rc1 {[%clk 0:01:20]}  d3 {[%clk 0:01:18]} 20. Bxd3 {[%clk 0:00:08]}  Rxd3 {[%clk 0:01:15]} 21. Rxc7 {[%clk 0:00:06]}  Bd4 {[%clk 0:01:05]} 0-1


[Site "https://www.chess.com"]

[Event "Titled Tuesday Blitz April 05 Early 2022"]
[White "Seemann, Jakub"]
[Black "Xiong, Jeffery"]
[WhiteFideId "21874697"]
[BlackFideId "2047640"]
[WhiteElo "2003"]
[BlackElo "2727"]
[Result "0-1"]
[Round "01"]
[TimeControl "180+1"]
[Date "2022.04.05"]
[WhiteClock "0:00:03"]
[BlackClock "0:00:20"]

1. e4 {[%clk 0:03:00]}  c5 {[%clk 0:02:47]} 2. Nf3 {[%clk 0:02:58]}  d6 {[%clk 0:02:45]} 3. d4 {[%clk 0:02:58]}  Nf6 {[%clk 0:02:44]} 4. Nc3 {[%clk 0:02:58]}  cxd4 {[%clk 0:02:44]} 5. Nxd4 {[%clk 0:02:58]}  a6 {[%clk 0:02:44]} 6. Be2 {[%clk 0:02:57]}  e5 {[%clk 0:02:44]} 7. Nb3 {[%clk 0:02:57]}  Be7 {[%clk 0:02:44]} 8. O-O {[%clk 0:02:57]}  O-O {[%clk 0:02:45]} 9. Qd3 {[%clk 0:02:57]}  Be6 {[%clk 0:02:37]} 10. Bd2 {[%clk 0:02:58]}  a5 {[%clk 0:02:23]} 11. a4 {[%clk 0:02:54]}  b6 {[%clk 0:02:23]} 12. Nd5 {[%clk 0:02:52]}  Nxd5 {[%clk 0:02:23]} 13. exd5 {[%clk 0:02:52]}  Bc8 {[%clk 0:02:24]} 14. f4 {[%clk 0:02:37]}  Nd7 {[%clk 0:02:16]} 15. fxe5 {[%clk 0:02:30]}  Nxe5 {[%clk 0:02:17]} 16. Qg3 {[%clk 0:02:30]}  Bb7 {[%clk 0:02:12]} 17. c4 {[%clk 0:02:25]}  Rc8 {[%clk 0:02:11]} 18. Rac1 {[%clk 0:02:23]}  Bh4 {[%clk 0:02:08]} 19. Qh3 {[%clk 0:02:15]}  Bg5 {[%clk 0:01:58]} 20. Bxg5 {[%clk 0:01:48]}  Qxg5 {[%clk 0:01:59]} 21. Rc3 {[%clk 0:01:43]}  Ba6 {[%clk 0:01:46]} 22. Nd4 {[%clk 0:01:40]}  Qd2 {[%clk 0:01:34]} 23. Nf5 {[%clk 0:01:31]}  Ng6 {[%clk 0:01:17]} 24. Bh5 {[%clk 0:01:04]}  Kh8 {[%clk 0:01:14]} 25. Nxd6 {[%clk 0:00:59]}  Nf4 {[%clk 0:00:52]} 26. Qg4 {[%clk 0:00:31]}  Qxb2 {[%clk 0:00:48]} 27. Rg3 {[%clk 0:00:16]}  Nxh5 {[%clk 0:00:24]} 28. Qxh5 {[%clk 0:00:17]}  Bxc4 {[%clk 0:00:25]} 29. Rh3 {[%clk 0:00:08]}  h6 {[%clk 0:00:21]} 30. Nxf7+ {[%clk 0:00:04]}  Rxf7 {[%clk 0:00:21]} 31. Qxf7 {[%clk 0:00:05]}  Bxf1 {[%clk 0:00:21]} 32. Rf3 {[%clk 0:00:03]}  Qxg2# {[%clk 0:00:20]} 0-1


[Site "https://www.chess.com"]